bitfinex/quotes_SOLUSD_20241218
["timestamp","ask_amount","ask_price","bid_price","bid_amount"]
[1734499164667,8.9,217.32,217.29,7.15263787]
[1734499164847,8.9,217.3,217.21,1.5581]
[1734499165047,8.9,217.3,217.26,7.15263787]
[1734499165855,8.9,217.29,217.27,7.15263787]
[1734499166167,8.9,217.28,217.26,7.15263787]
[1734499166367,8.9,217.33,217.27,7.15263787]
[1734499166535,23.776884,217.32,217.28,7.15263787]
[1734499166738,8.9,217.3,217.28,7.15263787]
[1734499166943,8.9,217.31,217.29,7.15263787]
[1734499167584,8.9,217.3,217.28,7.15263787]
[1734499167752,8.1272,217.36,217.29,7.15263787]
[1734499168073,8.9,217.33,217.31,7.15263787]
[1734499168854,8.9,217.32,217.29,7.15263787]
[1734499169965,8.9,217.35,217.28,7.15263787]
[1734499170955,8.9,217.34,217.27,7.15263787]
[1734499171173,8.9,217.34,217.28,7.15263787]
[1734499171345,23.776884,217.33,217.24,20.0]
[1734499171546,30.92952187,217.31,217.24,7.15263787]
[1734499172154,23.776884,217.31,217.24,7.15263787]
[1734499172550,23.776884,217.31,217.21,7.11872729]
[1734499172756,23.776884,217.31,217.25,7.15263787]
[1734499173849,30.92952187,217.31,217.23,7.15263787]
[1734499175149,23.776884,217.29,217.23,7.15263787]
[1734499176068,8.9,217.29,217.26,7.15263787]
[1734499176279,8.9,217.28,217.24,7.15263787]
[1734499176480,8.9,217.27,217.24,7.15263787]
[1734499178068,8.9,217.26,217.25,7.15263787]
[1734499181495,16.05263787,217.28,217.16,8.73182729]
[1734499181655,7.15263787,217.24,217.16,7.15263787]
[1734499181855,8.9,217.23,217.16,7.15263787]
[1734499182200,7.15263787,217.23,217.16,7.15263787]
[1734499182498,16.05263787,217.22,217.1,1.5934]
[1734499182658,8.9,217.21,217.14,7.15263787]
[1734499182976,8.9,217.21,217.15,7.15263787]
[1734499183163,8.9,217.2,217.15,7.15263787]
[1734499183356,8.9,217.2,217.14,7.15263787]
[1734499183681,8.9,217.19,217.16,7.15263787]
[1734499185599,8.9,217.18,217.1,20.0]
[1734499185802,8.9,217.17,217.15,7.15263787]
[1734499186174,16.05263787,217.21,217.14,7.15263787]
[1734499186589,8.9,217.21,217.14,7.15263787]
[1734499186789,16.05263787,217.21,217.14,7.15263787]
[1734499187215,8.9,217.21,217.13,7.15263787]
[1734499187427,7.15263787,217.2,217.13,7.15263787]
[1734499188496,16.05263787,217.21,217.14,7.15263787]
[1734499189448,8.9,217.19,217.07,7.11872729]
[1734499189720,7.15263787,217.17,217.1,7.15263787]
[1734499190019,7.15263787,217.15,217.05,1.5934]
[1734499190221,7.15263787,217.11,217.01,7.11872729]
[1734499190447,8.9,217.1,217.04,7.15263787]
[1734499190600,16.05263787,217.1,217.03,7.15263787]
[1734499190799,8.9,217.1,217.05,7.15263787]
[1734499191312,8.9,217.1,217.04,7.15263787]
[1734499192144,20.09731194,217.1,217.03,11.19731194]
[1734499192644,8.9,217.1,217.04,11.19731194]
[1734499193803,8.9,217.09,217.04,11.19731194]
[1734499195226,8.9,217.09,217.03,11.19731194]
[1734499196614,11.19731194,217.08,217.01,11.19731194]
[1734499196927,8.9,217.07,217.02,11.19731194]
[1734499197130,8.9,217.07,217.03,11.19731194]
[1734499197849,8.9,217.07,217.01,11.19731194]
[1734499199015,8.9,217.05,217.01,11.19731194]
[1734499199838,8.9,217.05,217.02,11.19731194]
[1734499201443,8.9,217.05,217.01,11.19731194]
[1734499201642,8.9,217.04,217.0,11.19731194]
[1734499201946,8.9,217.02,216.98,11.19731194]
[1734499202118,8.9,217.07,217.01,11.19731194]
[1734499202320,8.9,217.12,217.06,11.19731194]
[1734499202521,8.9,217.11,217.07,11.19731194]
[1734499202749,8.9,217.1,217.06,11.19731194]
[1734499202922,8.9,217.07,217.02,11.19731194]
[1734499203440,11.514,217.13,216.94,1.6504]
[1734499203441,8.9,217.04,216.99,11.19731194]
[1734499203745,8.9,217.02,216.98,11.19731194]
[1734499203935,8.9,217.02,216.99,11.19731194]
[1734499204119,8.9,217.02,217.01,11.19731194]
[1734499205522,8.9,217.07,217.01,11.19731194]
[1734499205732,8.9,217.1,217.04,11.19731194]
[1734499205921,8.9,217.09,217.03,11.19731194]
[1734499206939,8.9,217.08,217.02,11.19731194]
[1734499207124,8.9,217.07,217.03,11.19731194]
[1734499207544,20.09731194,217.09,217.02,11.19731194]
[1734499207732,13.1078,217.14,217.03,11.19731194]
[1734499207733,8.9,217.08,217.03,11.19731194]
[1734499207936,13.1078,217.14,217.02,11.19731194]
[1734499207937,8.9,217.07,217.02,11.19731194]
[1734499209451,8.9,217.08,217.03,11.19731194]
[1734499210657,8.9,217.07,217.02,11.19731194]
[1734499211953,8.9,217.07,216.99,11.19731194]
[1734499211954,20.09731194,217.07,216.99,11.19731194]
[1734499212258,11.19731194,217.06,216.99,11.19731194]
[1734499212849,20.09731194,217.07,217.0,11.19731194]
[1734499213535,8.9,217.07,217.01,11.19731194]
[1734499214045,8.9,217.07,217.01,7.16781916]
[1734499214379,8.9,217.11,217.04,7.16781916]
[1734499214535,7.16781916,217.15,217.08,7.16781916]
[1734499214738,16.06781916,217.14,217.07,7.16781916]
[1734499215254,8.9,217.13,217.08,7.16781916]
[1734499215423,8.9,217.12,217.07,7.16781916]
[1734499215627,8.9,217.12,217.03,1.5386]
[1734499215857,7.16781916,217.1,217.03,7.16781916]
[1734499217156,16.06781916,217.12,217.04,7.16781916]
[1734499217728,7.16781916,217.11,217.04,7.16781916]
[1734499218660,7.16781916,217.11,217.0,20.0]
[1734499218661,7.16781916,217.08,217.0,20.0]
[1734499218862,16.06781916,217.07,217.0,7.16781916]
[1734499219736,8.9,217.07,217.01,7.16781916]
[1734499220635,8.9,217.07,216.98,1.5386]
[1734499220636,8.9,217.07,217.04,7.16781916]
[1734499220830,8.9,217.07,216.99,0.69115488]
[1734499221162,8.9,217.07,217.01,7.16781916]
[1734499221659,16.06781916,217.07,217.0,7.16781916]
[1734499222176,8.9,217.07,217.0,7.16781916]
[1734499223963,8.9,217.05,216.94,0.69105196]
[1734499224162,7.16781916,216.95,216.84,1.5807]
[1734499224389,7.16781916,216.93,216.86,7.16781916]
[1734499224551,8.9,216.94,216.85,7.16781916]
[1734499224748,8.9,216.94,216.84,5.73101894]
[1734499225098,8.9,217.0,216.93,7.16781916]
[1734499225246,1.6036,217.02,216.97,7.16781916]
[1734499225450,8.9,217.06,216.99,7.16781916]
[1734499225649,16.06781916,217.06,216.99,7.16781916]
[1734499227875,8.0135,217.08,216.95,7.16781916]
[1734499227876,7.16781916,217.03,216.95,7.16781916]
[1734499228048,7.16781916,217.03,216.96,7.16781916]
[1734499228472,7.16781916,217.02,216.95,7.16781916]
[1734499229362,8.9,217.05,216.98,7.16781916]
[1734499229552,8.9,217.04,216.99,7.16781916]
[1734499229875,8.9,217.07,217.01,7.16781916]
[1734499230051,8.9,217.06,217.03,20.0]
[1734499231483,8.9,217.05,217.0,7.16781916]
[1734499232460,8.9,217.04,217.01,7.16781916]
[1734499232849,8.9,217.07,217.0,7.16781916]
[1734499233987,8.9,217.06,217.01,7.16781916]
[1734499235658,8.9,217.07,217.03,7.16781916]
[1734499235859,8.9,217.11,217.06,7.16781916]
[1734499236092,8.9,217.11,216.99,1.5811]
[1734499236093,8.9,217.1,217.08,7.16781916]
[1734499236294,8.9,217.13,217.09,7.16781916]
[1734499236956,8.9,217.13,217.1,7.16781916]
[1734499237160,8.9,217.17,217.12,7.16781916]
[1734499237361,6.5575,217.18,217.11,7.16781916]
[1734499237362,8.9,217.16,217.11,7.16781916]
[1734499237672,16.06781916,217.16,217.09,7.16781916]
[1734499238264,6.5575,217.18,217.06,20.0]
[1734499238265,8.9,217.15,217.11,7.16781916]
[1734499239272,8.9,217.17,217.12,7.16781916]
[1734499239480,8.9,217.17,217.13,7.16781916]
[1734499239766,8.9,217.19,217.14,7.16781916]
[1734499240691,8.9,217.21,217.15,7.16781916]
[1734499240908,8.9,217.22,217.17,7.16781916]
[1734499241266,16.06781916,217.22,217.13,20.0]
[1734499241569,16.06781916,217.22,217.1,5.7262878]
[1734499241570,7.16781916,217.2,217.12,7.16781916]
[1734499242085,8.9,217.19,217.13,7.16781916]
[1734499243087,8.9,217.19,217.14,7.16781916]
[1734499243287,8.9,217.2,217.15,7.16781916]
[1734499243675,8.9,217.2,217.14,7.16781916]
[1734499243872,8.9,217.19,217.13,7.16781916]
[1734499244092,8.9,217.19,217.11,20.0]
[1734499244389,16.06781916,217.19,217.12,7.16781916]
[1734499245103,8.9,217.19,217.13,7.16781916]
[1734499245864,8.9,217.19,217.12,7.16781916]
[1734499246066,6.5575,217.23,217.11,7.16781916]
[1734499246067,16.06781916,217.18,217.11,7.16781916]
[1734499246359,8.9,217.18,217.11,7.16781916]
[1734499248267,16.06781916,217.18,217.11,7.16781916]
[1734499248473,8.9,217.17,217.07,20.0]
[1734499248681,8.9,217.16,217.11,7.16781916]
[1734499249475,8.9,217.16,217.1,7.16781916]
[1734499249782,8.9,217.14,217.07,7.16781916]
[1734499250378,8.9,217.14,217.08,7.16781916]
[1734499250867,16.06781916,217.14,217.07,7.16781916]
[1734499251877,8.9,217.13,217.06,7.16781916]
[1734499252477,8.9,217.13,217.08,7.16781916]
[1734499252982,8.9,217.13,217.07,7.16781916]
[1734499253970,8.9,217.12,217.07,7.16781916]
[1734499254983,8.9,217.12,217.08,7.16781916]
[1734499255580,8.9,217.12,217.06,7.16781916]
[1734499256996,16.06781916,217.11,217.04,7.16781916]
[1734499257308,8.9,217.1,217.03,7.16781916]
[1734499257481,8.9,217.1,217.04,7.16781916]
[1734499257700,8.9,217.09,217.05,7.16781916]
[1734499258973,8.9,217.09,217.08,7.16781916]
[1734499259380,8.9,217.21,217.08,7.16781916]
[1734499259581,8.9,217.18,217.14,7.16781916]
[1734499259985,8.9,217.16,217.12,7.16781916]
[1734499260294,8.9,217.19,217.13,7.16781916]
[1734499261218,8.9,217.18,217.12,7.16781916]
[1734499261503,16.06781916,217.17,217.1,27.16781916]
[1734499262908,8.9,217.17,217.1,27.16781916]
[1734499264209,8.9,217.16,217.13,7.16781916]
[1734499265085,16.06781916,217.18,217.1,7.16781916]
[1734499265705,8.011,217.2,217.08,7.16781916]
[1734499265706,8.9,217.13,217.08,7.16781916]
[1734499266080,8.9,217.12,217.08,7.16781916]
[1734499266703,8.9,217.15,217.09,7.16781916]
[1734499267201,8.9,217.17,217.12,7.16781916]
[1734499267581,8.9,217.16,217.11,7.16781916]
[1734499268186,8.9,217.15,217.1,7.16781916]
[1734499268597,8.9,217.15,217.09,7.16781916]
[1734499268804,8.9,217.15,217.08,7.16781916]
[1734499268982,7.16781916,217.14,217.07,7.16781916]
[1734499269182,8.9,217.11,217.05,7.16781916]
[1734499269718,8.9,217.1,217.05,7.16781916]
[1734499269893,8.9,217.08,217.02,7.16781916]
[1734499270286,8.9,217.08,217.03,7.16781916]
[1734499271408,8.9,217.07,217.03,7.16781916]
[1734499271730,8.9,217.07,217.01,7.16781916]
[1734499271906,8.9,217.07,217.02,7.16781916]
[1734499272234,8.9,217.07,217.03,11.19815097]
[1734499274008,8.9,217.09,217.06,11.19815097]
[1734499274211,8.9,217.1,217.08,11.19815097]
[1734499274419,8.9,217.1,217.09,11.19815097]
[1734499274639,8.9,217.15,217.09,11.19815097]
[1734499274791,8.9,217.14,217.1,11.19815097]
[1734499275115,8.9,217.13,217.11,11.19815097]
[1734499275314,8.9,217.15,217.12,11.19815097]
[1734499275503,8.9,217.14,217.12,11.19815097]
[1734499278024,8.9,217.16,217.11,11.19815097]
[1734499278394,8.9,217.15,217.12,11.19815097]
[1734499280726,8.9,217.18,217.13,11.19815097]
[1734499282101,23.776884,217.17,217.13,11.19815097]
[1734499282318,8.9,217.16,217.14,11.19815097]
[1734499282731,23.776884,217.19,217.15,11.19815097]
[1734499283028,8.9,217.21,217.18,11.19815097]
[1734499284021,8.9,217.24,217.18,11.19815097]
[1734499284224,23.776884,217.23,217.18,11.19815097]
[1734499285164,8.9,217.22,217.19,11.19815097]
[1734499285614,8.9,217.21,217.19,11.19815097]
[1734499287707,8.9,217.25,217.19,11.19815097]
[1734499287912,8.9,217.25,217.14,11.19815097]
[1734499287913,8.9,217.24,217.23,11.19815097]
[1734499288114,8.9,217.26,217.23,11.19815097]
[1734499288611,20.09815097,217.29,217.22,11.19815097]
[1734499288810,8.9,217.28,217.23,11.19815097]
[1734499289830,8.9,217.27,217.23,11.19815097]
[1734499290020,23.776884,217.29,217.24,11.19815097]
[1734499290251,8.9,217.28,217.23,11.19815097]
[1734499291410,23.776884,217.27,217.23,11.19815097]
[1734499291627,23.776884,217.27,217.17,20.0]
[1734499291628,8.9,217.26,217.21,11.19815097]
[1734499292528,23.776884,217.25,217.19,11.19815097]
[1734499293926,23.776884,217.25,217.19,7.15570841]
[1734499294737,1.514,217.29,217.16,7.15570841]
[1734499294738,23.776884,217.23,217.16,7.15570841]
[1734499294953,23.776884,217.23,217.17,7.15570841]
[1734499295331,23.776884,217.23,217.13,1.6616]
[1734499295332,23.776884,217.23,217.18,7.15570841]
[1734499295537,8.9,217.24,217.21,7.15570841]
[1734499296047,23.776884,217.26,217.22,7.15570841]
[1734499296734,8.9,217.25,217.21,7.15570841]
[1734499297938,8.9,217.24,217.22,11.1786726]
[1734499298361,8.9,217.29,217.23,11.1786726]
[1734499298566,8.9,217.32,217.25,11.1786726]
[1734499299150,8.9,217.31,217.26,11.1786726]
[1734499299942,11.1786726,217.33,217.25,11.1786726]
[1734499299943,32.676884,217.3,217.25,11.1786726]
[1734499300147,8.9,217.29,217.24,11.1786726]
[1734499301066,8.9,217.29,217.25,11.1786726]
[1734499301569,8.9,217.28,217.24,11.1786726]
[1734499303646,8.9,217.29,217.23,11.1786726]
[1734499304651,8.9,217.29,217.24,11.1786726]
[1734499304855,8.9,217.28,217.25,11.1786726]
[1734499305738,8.9,217.29,217.25,11.1786726]
[1734499306068,8.9,217.27,217.24,11.1786726]
[1734499307356,8.9,217.29,217.25,11.1786726]
[1734499308265,8.9,217.33,217.27,11.1786726]
[1734499309473,8.9,217.35,217.31,11.1786726]
[1734499309771,8.9,217.38,217.32,11.1786726]
[1734499310090,8.9,217.38,217.36,11.1786726]
[1734499310247,20.0786726,217.43,217.36,11.1786726]
[1734499310566,8.9,217.41,217.35,11.1786726]
[1734499311358,23.776884,217.4,217.35,11.1786726]
[1734499311970,23.776884,217.4,217.28,0.69009916]
[1734499311971,8.9,217.39,217.34,11.1786726]
[1734499312183,32.676884,217.38,217.33,11.1786726]
[1734499312386,8.9,217.38,217.33,11.1786726]
[1734499312551,23.776884,217.37,217.33,11.1786726]
[1734499312747,8.9,217.35,217.3,11.1786726]
[1734499312989,8.9,217.43,217.33,20.0]
[1734499313142,8.9,217.43,217.28,20.0]
[1734499313143,8.9,217.41,217.38,11.1786726]
[1734499314154,8.9,217.42,217.36,11.1786726]
[1734499314351,23.776884,217.41,217.36,11.1786726]
[1734499317984,23.776884,217.41,217.36,7.14454245]
[1734499318893,23.776884,217.41,217.27,0.69007142]
[1734499319185,8.9,217.38,217.32,7.14454245]
[1734499319360,8.9,217.36,217.33,7.14454245]
[1734499320149,8.9,217.38,217.34,7.14454245]
[1734499320664,23.776884,217.37,217.34,7.14454245]
[1734499320871,8.9,217.36,217.33,7.14454245]
[1734499323467,7.14454245,217.4,217.26,7.67464334]
[1734499323468,8.9,217.4,217.35,7.14454245]
[1734499323672,8.9,217.4,217.36,7.14454245]
[1734499323881,8.9,217.39,217.36,7.14454245]
[1734499324084,8.9,217.39,217.28,0.6900423]
[1734499324085,8.9,217.42,217.35,7.14454245]
[1734499324807,23.776884,217.41,217.35,7.14454245]
[1734499326002,23.776884,217.37,217.34,7.14454245]
[1734499326314,8.9,217.38,217.36,7.14454245]
[1734499326895,8.9,217.38,217.35,7.14454245]
[1734499327402,8.9,217.38,217.36,7.14454245]
[1734499328465,10.5579,217.44,217.37,7.14454245]
[1734499328665,8.9,217.44,217.4,7.14454245]
[1734499328885,8.9,217.44,217.39,7.14454245]
[1734499329095,8.9,217.43,217.38,7.14454245]
[1734499329282,8.9,217.42,217.37,7.14454245]
[1734499329906,23.776884,217.41,217.37,7.14454245]
[1734499330113,8.9,217.4,217.36,7.14454245]
[1734499330693,8.9,217.39,217.35,7.14454245]
[1734499331096,32.676884,217.41,217.37,7.14454245]
[1734499331304,7.14454245,217.43,217.36,7.14454245]
[1734499331798,8.9,217.4,217.29,20.0]
[1734499331999,32.676884,217.39,217.34,7.14454245]
[1734499332890,8.9,217.38,217.33,7.14454245]
[1734499333192,8.9,217.37,217.34,7.14454245]
[1734499334122,8.9,217.38,217.35,7.14454245]
[1734499334512,8.9,217.37,217.34,7.14454245]
[1734499335303,8.9,217.38,217.35,7.14454245]
[1734499336201,8.9,217.44,217.37,7.14454245]
[1734499336399,8.9,217.44,217.4,7.14454245]
[1734499336614,0.5590156,217.45,217.43,7.14454245]
[1734499336815,0.5590156,217.45,217.4,21.5634]
[1734499337201,0.5590156,217.45,217.44,7.14454245]
[1734499339825,0.5590156,217.45,217.4,0.68980913]
[1734499339996,0.5590156,217.45,217.41,7.14454245]
[1734499340203,8.9,217.44,217.41,7.14454245]
[1734499340506,8.9,217.44,217.43,7.14454245]
[1734499341729,0.5590156,217.45,217.43,7.14454245]
[1734499341899,1.56e-05,217.45,217.44,31.61114806]
[1734499342102,8.9,217.61,217.47,20.0]
[1734499342331,16.04454245,217.6,217.47,20.0]
[1734499342633,8.9,217.59,217.52,7.14454245]
[1734499342926,7.14454245,217.57,217.5,7.14454245]
[1734499343124,7.14454245,217.56,217.49,7.14454245]
[1734499343513,8.9,217.58,217.5,7.14454245]
[1734499343713,16.04454245,217.58,217.51,7.14454245]
[1734499343917,7.14454245,217.57,217.5,7.14454245]
[1734499344100,8.9,217.55,217.5,11.1498023]
[1734499345130,8.9,217.54,217.49,11.1498023]
[1734499345298,23.776884,217.52,217.47,11.1498023]
[1734499345503,8.9,217.51,217.47,11.1498023]
[1734499345928,8.9,217.51,217.46,11.1498023]
[1734499346428,8.9,217.51,217.47,11.1498023]
[1734499347299,8.9,217.54,217.5,11.1498023]
[1734499347502,8.9,217.53,217.48,11.1498023]
[1734499347729,8.9,217.51,217.46,11.1498023]
[1734499347908,23.776884,217.5,217.46,11.1498023]
[1734499348118,7.96,217.55,217.42,20.0]
[1734499348119,8.9,217.56,217.47,11.1498023]
[1734499348419,23.776884,217.53,217.47,11.1498023]
[1734499348827,8.9,217.52,217.48,11.1498023]
[1734499349039,8.9,217.51,217.49,11.1498023]
[1734499349209,8.9,217.5,217.48,11.1498023]
[1734499350037,8.9,217.52,217.49,11.1498023]
[1734499350827,7.96,217.61,217.49,11.1498023]
[1734499350828,8.9,217.58,217.51,11.1498023]
[1734499351039,8.9,217.58,217.55,11.1498023]
[1734499351397,8.9,217.58,217.49,0.68968479]
[1734499351398,8.9,217.58,217.54,11.1498023]
[1734499351634,8.9,217.58,217.55,11.1498023]
[1734499351837,8.9,217.58,217.51,1.5995]
[1734499351838,8.9,217.58,217.53,11.1498023]
[1734499352308,8.9,217.58,217.54,11.1498023]
[1734499352509,23.776884,217.6,217.53,11.1498023]
[1734499352809,23.776884,217.6,217.54,11.1498023]
[1734499353009,20.0498023,217.61,217.54,11.1498023]
[1734499353221,20.0498023,217.61,217.55,11.1498023]
[1734499353222,8.9,217.61,217.55,11.1498023]
[1734499353641,20.0498023,217.61,217.54,11.1498023]
[1734499353839,10.0,217.64,217.57,11.1498023]
[1734499353840,8.9,217.63,217.57,11.1498023]
[1734499354217,20.0498023,217.63,217.55,11.1498023]
[1734499354519,11.1498023,217.62,217.55,11.1498023]
[1734499354706,11.1498023,217.61,217.54,11.1498023]
[1734499354911,11.1498023,217.59,217.52,11.1498023]
[1734499355308,43.8266863,217.58,217.51,11.1498023]
[1734499356114,32.676884,217.58,217.51,11.1498023]
[1734499356316,32.676884,217.58,217.53,11.1498023]
[1734499356624,32.676884,217.58,217.52,11.1498023]
[1734499356814,32.676884,217.58,217.47,11.1498023]
[1734499356815,32.676884,217.58,217.53,11.1498023]
[1734499357015,32.676884,217.58,217.52,11.1498023]
[1734499357842,43.8266863,217.58,217.51,11.1498023]
[1734499358045,8.9,217.56,217.45,14.51740262]
[1734499358348,23.776884,217.58,217.47,11.1498023]
[1734499358349,34.9266863,217.54,217.47,11.1498023]
[1734499358647,11.1498023,217.53,217.46,11.1498023]
[1734499358840,34.9266863,217.54,217.47,11.1498023]
[1734499359541,23.776884,217.54,217.48,11.1498023]
[1734499359716,34.9266863,217.54,217.47,11.1498023]
[1734499359918,11.1498023,217.53,217.46,11.1498023]
[1734499360151,8.9,217.51,217.46,11.1498023]
[1734499360642,8.9,217.5,217.47,11.1498023]
[1734499361557,23.776884,217.52,217.45,11.1498023]
[1734499361735,8.9,217.51,217.45,11.1498023]
[1734499362245,8.9,217.5,217.45,11.1498023]
[1734499362449,8.9,217.49,217.45,11.1498023]
[1734499367222,8.9,217.49,217.44,11.1498023]
[1734499367651,8.9,217.48,217.46,11.1498023]
[1734499371252,23.776884,217.52,217.46,11.1498023]
[1734499371633,11.4912,217.56,217.48,11.1498023]
[1734499371634,8.9,217.5,217.48,11.1498023]
[1734499371947,23.776884,217.53,217.49,11.1498023]
[1734499372761,8.9,217.51,217.48,11.1498023]
[1734499372936,8.9,217.5,217.47,11.1498023]
[1734499374147,8.9,217.5,217.48,11.1498023]
[1734499374352,8.9,217.52,217.49,11.1498023]
[1734499374674,8.9,217.54,217.5,11.1498023]
[1734499375172,8.84464935,217.54,217.5,11.1498023]
[1734499375479,8.84464935,217.52,217.48,11.1498023]
[1734499377578,8.84464935,217.51,217.47,11.1498023]
[1734499377777,8.84464935,217.53,217.48,11.1498023]
[1734499377983,8.84464935,217.52,217.48,7.13676068]
[1734499378753,8.84464935,217.51,217.49,7.13676068]
[1734499379052,121.39684502,217.69,217.43,20.68969531]
[1734499379053,10.0,217.64,217.55,1.4522]
[1734499379263,10.0,217.64,217.5,270.16041421]
[1734499379264,7.15167033,217.8,217.67,1.6725]
[1734499379490,0.5590156,217.88,217.71,33.82]
[1734499379785,0.5590156,217.88,217.68,34.87132506]
[1734499379962,0.5590156,218.1,217.86,10.0]
[1734499380282,0.5590156,218.1,217.75,20.0]
[1734499380283,2.78254739,218.16,218.03,17.76690256]
[1734499380455,2.78254739,218.16,218.07,17.76690256]
[1734499380782,2.78254739,218.16,218.08,86.67838489]
[1734499380997,8.63756836,218.16,218.09,21.62243149]
[1734499381153,17.76690256,218.17,218.1,76.35072893]
[1734499381348,17.76690256,218.17,218.11,17.48803149]
[1734499381579,17.76690256,218.15,218.12,113.59087391]
[1734499381769,17.76690256,218.15,218.13,39.19119318]
[1734499381953,17.76690256,218.16,218.14,107.39761795]
[1734499382154,13.82,218.21,218.15,17.48803149]
[1734499382376,13.82,218.21,218.16,166.72538351]
[1734499382684,11.4573,218.2,218.17,21.70316169]
[1734499382876,11.4573,218.2,218.18,84.8126478]
[1734499383055,11.4573,218.2,218.18,63.74620514]
[1734499383253,11.4573,218.2,218.18,39.42260514]
[1734499383452,20.0,218.17,218.16,104.73425053]
[1734499383652,55.53380512,218.17,218.16,97.17505053]
[1734499383886,55.53380512,218.17,218.16,75.13697771]
[1734499384062,55.53380512,218.17,218.16,56.16417771]
[1734499384382,79.31068912,218.17,218.16,7.771e-05]
[1734499384585,79.31068912,218.17,218.15,57.20238864]
[1734499384586,35.236284,218.16,218.15,57.20238864]
[1734499384756,119.58526799,218.16,218.14,52.03839083]
[1734499384958,53.776884,218.11,217.91,2.47718547]
[1734499385154,23.776884,218.02,217.91,2.47718547]
[1734499385455,41.54378656,217.92,217.91,2.47718547]
[1734499385675,166.21046488,217.92,217.91,8.547e-05]
[1734499385977,197.37713447,217.92,217.91,8.547e-05]
[1734499386176,179.61023191,217.92,217.91,8.547e-05]
[1734499386379,179.61023191,217.92,217.78,17.76690256]
[1734499386380,23.776884,217.91,217.78,17.76690256]
[1734499386594,113.02201239,217.83,217.78,17.76690256]
[1734499386769,43.6333374,217.82,217.78,17.76690256]
[1734499386966,59.21667219,217.81,217.78,17.76690256]
[1734499387277,118.43334441,217.8,217.76,17.76690256]
[1734499387488,21.81666869,217.79,217.76,17.76690256]
[1734499387665,21.81666869,217.78,217.76,17.76690256]
[1734499387982,43.6333374,217.77,217.76,17.76690256]
[1734499388285,74.78705279,217.77,217.76,17.76690256]
[1734499389053,113.02201239,217.83,217.76,17.76690256]
[1734499389471,113.02201239,217.83,217.78,17.76690256]
[1734499389670,113.02201239,217.83,217.76,17.76690256]
[1734499389864,23.776884,217.82,217.76,17.76690256]
[1734499390289,23.776884,217.82,217.74,17.76690256]
[1734499391189,26.49714498,217.82,217.77,17.76690256]
[1734499391395,17.76690256,217.81,217.73,17.76690256]
[1734499391587,23.776884,217.8,217.73,17.76690256]
[1734499391762,23.776884,217.78,217.72,17.76690256]
[1734499392165,41.54378656,217.8,217.72,17.76690256]
[1734499392772,41.54378656,217.8,217.74,17.76690256]
[1734499392994,2.72026098,217.82,217.76,17.76690256]
[1734499394166,2.72026098,217.82,217.78,17.76690256]
[1734499395113,17.76690256,217.88,217.8,17.76690256]
[1734499395594,17.76690256,217.89,217.81,17.76690256]
[1734499395799,17.76690256,217.9,217.82,17.76690256]
[1734499395971,2.70777246,217.84,217.82,17.76690256]
[1734499396169,2.70777246,217.84,217.8,17.76690256]
[1734499396599,2.70777246,217.84,217.78,17.76690256]
[1734499398097,9.1762,217.96,217.83,17.76690256]
[1734499398274,9.1762,217.96,217.86,17.76690256]
[1734499398275,2.81283285,217.9,217.86,17.76690256]
[1734499398467,2.81283285,217.9,217.82,17.76690256]
[1734499398674,17.76690256,217.89,217.82,17.76690256]
[1734499399700,20.57973541,217.9,217.82,17.76690256]
[1734499400795,2.81283285,217.9,217.83,17.76690256]
[1734499401093,17.76690256,217.87,217.8,17.76690256]
[1734499401298,17.76690256,217.85,217.78,17.76690256]
[1734499401594,2.81283285,217.9,217.83,17.76690256]
[1734499401799,17.76690256,217.88,217.8,17.76690256]
[1734499402098,17.76690256,217.84,217.73,23.776884]
[1734499402395,17.76690256,217.86,217.78,17.76690256]
[1734499402702,17.76690256,217.88,217.8,17.76690256]
[1734499405819,17.76690256,217.86,217.78,17.76690256]
[1734499406309,17.76690256,217.86,217.76,17.76690256]
[1734499406504,17.76690256,217.86,217.78,17.76690256]
[1734499406877,17.76690256,217.88,217.8,17.76690256]